bitfinex/quotes_ETHUSD_20250426
["timestamp","ask_amount","ask_price","bid_price","bid_amount"]
[1745703422859,3.30898981,1814.9,1814.7,0.20816413]
[1745703423866,3.0,1814.9,1814.7,0.20816413]
[1745703424367,0.30930872,1814.8,1814.7,0.20816413]
[1745703433598,6.91438865,1814.8,1814.7,0.20816413]
[1745703433898,5.51085638,1814.6,1814.5,4.579]
[1745703434172,7.71042135,1814.6,1814.5,4.77151571]
[1745703434345,1.07320872,1814.6,1814.5,4.77151571]
[1745703435144,6.5840651,1814.6,1814.5,4.77151571]
[1745703435976,7.85347161,1814.6,1814.5,0.19251571]
[1745703436279,7.85347161,1814.6,1814.2,10.89945709]
[1745703436489,8.01973007,1814.6,1814.3,0.19250044]
[1745703436647,5.51117697,1814.5,1814.3,0.19250044]
[1745703436849,11.62117697,1814.5,1814.3,0.19250044]
[1745703437153,6.11,1814.5,1814.3,0.19250044]
[1745703437467,0.30930872,1814.4,1814.3,0.19250044]
[1745703439683,6.41930872,1814.4,1814.3,0.19250044]
[1745703439883,18.32338626,1814.4,1814.3,0.19250044]
[1745703440453,18.73841288,1814.4,1814.3,0.19250044]
[1745703441054,5.51182845,1814.3,1813.9,10.91228299]
[1745703441385,11.62182845,1814.3,1814.0,0.19264226]
[1745703441585,0.30930872,1814.2,1814.0,0.19264226]
[1745703445657,13.05761475,1814.3,1814.0,0.19264226]
[1745703445852,6.11,1814.2,1814.0,0.19264226]
[1745703448082,11.62207769,1814.2,1814.0,0.19264226]
[1745703448588,15.44267528,1814.1,1814.0,0.19264226]
[1745703448887,16.87834025,1814.1,1814.0,0.19264226]
[1745703449088,16.36670224,1814.1,1814.0,0.19264226]
[1745703449291,18.71098184,1814.1,1814.0,0.19264226]
[1745703449983,20.14664681,1814.1,1814.0,0.19264226]
[1745703451695,18.02995637,1814.1,1814.0,0.19264226]
[1745703458076,16.45501687,1814.1,1814.0,0.19264226]
[1745703458279,14.93103727,1814.1,1814.0,0.19264226]
[1745703458785,15.72963727,1814.1,1814.0,0.19264226]
[1745703459380,9.28377916,1814.0,1813.9,0.54633923]
[1745703459596,10.03841866,1814.0,1813.9,0.54633923]
[1745703460022,10.34708065,1814.0,1813.9,0.54633923]
[1745703460495,18.65402624,1814.0,1813.9,0.7344223]
[1745703461314,18.65402624,1814.0,1813.9,0.54633923]
[1745703466338,5.51390573,1813.6,1813.4,4.581]
[1745703466502,5.56366077,1813.5,1813.4,4.581]
[1745703466702,5.56366077,1813.5,1813.2,6.32468154]
[1745703467102,5.56366077,1813.5,1813.2,7.96688568]
[1745703467332,11.07795743,1813.5,1813.2,2.45200414]
[1745703467932,5.56366077,1813.5,1813.2,7.96709252]
[1745703468236,5.56366077,1813.5,1813.2,7.96707748]
[1745703468847,5.56366077,1813.5,1813.2,6.32487334]
[1745703470636,5.56366077,1813.5,1813.2,0.8098]
[1745703471441,5.56366077,1813.5,1813.2,6.32487259]
[1745703472539,11.07797459,1813.5,1813.2,0.8098]
[1745703473140,5.56366077,1813.5,1813.2,0.8098]
[1745703473439,5.56366077,1813.5,1813.2,7.41537066]
[1745703475539,5.56366077,1813.5,1813.3,0.19032639]
[1745703475747,0.3092446,1813.4,1813.3,0.19032639]
[1745703479144,0.3092446,1813.4,1813.3,6.51513364]
[1745703479546,0.3092446,1813.7,1813.6,6.27429501]
[1745703479744,0.3092446,1813.7,1813.6,6.46442921]
[1745703479952,0.3092446,1813.7,1813.6,8.12048109]
[1745703480574,0.3092446,1813.7,1813.6,6.46442921]
[1745703481247,5.56366077,1813.8,1813.7,6.273991]
[1745703481443,3.0,1814.1,1813.9,5.51282502]
[1745703481649,8.56366077,1814.1,1814.0,0.94888806]
[1745703482153,8.87306283,1814.1,1814.0,0.94888806]
[1745703483579,5.87306283,1814.1,1814.0,0.94888806]
[1745703484467,5.56366077,1814.1,1814.0,6.46156722]
[1745703484772,10.37225746,1814.7,1814.0,6.46156722]
[1745703484773,5.56366077,1814.6,1814.1,0.8305]
[1745703484956,5.56366077,1814.6,1814.4,0.8305]
[1745703485148,5.56366077,1814.6,1814.5,0.18481387]
[1745703486041,5.56366077,1814.6,1814.5,5.69597396]
[1745703487886,5.56366077,1814.9,1814.5,2.21910737]
[1745703488175,5.56366077,1814.9,1814.7,5.51040844]
[1745703488539,5.56366077,1814.9,1814.8,0.18230293]
[1745703488964,5.56366077,1814.9,1814.8,5.69255199]
[1745703489164,5.56366077,1814.9,1814.8,7.64334803]
[1745703489352,5.56366077,1815.2,1814.8,7.64320985]
[1745703490878,11.82735975,1815.2,1814.8,1.01280293]
[1745703492692,5.56366077,1815.1,1814.8,1.01280293]
[1745703496385,5.56366077,1815.1,1814.8,6.52300151]
[1745703498388,0.7546395,1815.0,1814.8,1.01280293]
[1745703498589,5.50994545,1814.9,1814.8,0.18230293]
[1745703498886,7.80977002,1814.9,1814.8,0.18230293]
[1745703499097,5.51082334,1814.7,1814.4,4.579]
[1745703499279,12.60110814,1814.6,1814.4,4.579]
[1745703500557,8.56366077,1814.5,1814.0,5.381]
[1745703500795,6.26632132,1814.4,1814.0,5.381]
[1745703502674,11.7780467,1814.4,1814.0,5.381]
[1745703503363,5.51178685,1814.3,1814.0,5.381]
[1745703504393,11.07544762,1814.3,1814.0,5.381]
[1745703504797,5.51268176,1814.0,1813.7,5.4054]
[1745703505464,5.51268176,1814.0,1813.8,0.16901044]
[1745703506575,11.07622644,1814.1,1813.8,0.16901044]
[1745703507709,5.51271302,1814.0,1813.8,0.16901044]
[1745703508564,11.07622311,1814.1,1813.8,0.16901044]
[1745703524224,5.56366077,1814.1,1813.8,0.16901044]
[1745703524390,5.56366077,1814.1,1813.9,6.28719592]
[1745703524591,5.56366077,1814.1,1814.0,5.51267916]
[1745703524815,5.56366077,1814.1,1814.0,5.68305789]
[1745703526925,8.56366077,1814.4,1814.1,6.28656331]
[1745703527094,5.56366077,1814.5,1814.2,7.08482008]
[1745703527294,5.56366077,1814.5,1814.2,6.45616375]
[1745703527510,5.56366077,1814.5,1814.3,5.51176685]
[1745703527709,8.56366077,1814.5,1814.4,0.16861309]
[1745703528006,8.56366077,1814.5,1814.3,5.51176685]
[1745703528210,8.56366077,1814.5,1814.4,0.16861309]
[1745703528930,8.56366077,1814.5,1814.3,5.51176685]
[1745703529131,8.56366077,1814.5,1814.4,0.16861309]
[1745703529331,8.56366077,1814.5,1814.3,5.51176685]
[1745703529520,8.56366077,1814.5,1814.4,0.16861309]
[1745703529724,8.56366077,1814.5,1814.3,5.51176685]
[1745703530030,8.56366077,1814.5,1814.4,0.16861309]
[1745703530414,8.56366077,1814.5,1814.3,6.69132692]
[1745703530602,8.56366077,1814.5,1814.4,0.16861309]
[1745703530801,8.56366077,1814.5,1814.4,5.51146384]
[1745703531032,8.56366077,1814.5,1814.4,0.16861309]
[1745703531402,8.56366077,1814.5,1814.4,5.51146384]
[1745703531600,8.56366077,1814.5,1814.4,6.56539543]
[1745703534134,8.56366077,1814.5,1814.4,1.05393159]
[1745703536806,3.0,1814.5,1814.4,1.05393159]
[1745703538539,3.0,1814.5,1814.4,0.16861309]
[1745703538708,3.0,1814.5,1814.3,11.28932788]
[1745703538904,3.0,1814.5,1814.4,0.16861309]
[1745703539106,3.0,1814.5,1814.3,11.28932788]
[1745703539415,3.0,1814.5,1814.4,0.16861309]
[1745703539615,3.0,1814.5,1814.3,11.28932788]
[1745703539815,3.0,1814.5,1814.4,0.16861309]
[1745703540537,3.0,1814.5,1814.3,11.28932788]
[1745703540738,3.0,1814.5,1814.4,0.16861309]
[1745703540941,3.0,1814.5,1814.3,11.28932788]
[1745703541143,0.30882739,1814.6,1814.4,1.29754588]
[1745703541437,11.82886789,1814.7,1814.4,1.29754588]
[1745703541638,11.82886789,1814.7,1814.4,0.16861309]
[1745703541940,11.82886789,1814.7,1814.3,11.28932788]
[1745703542238,11.82886789,1814.7,1814.5,0.16856584]
[1745703542420,11.82886789,1814.7,1814.4,0.16861309]
[1745703542621,14.82886789,1814.7,1814.6,0.16676443]
[1745703542820,14.82886789,1814.7,1814.5,0.16681167]
[1745703543020,14.82886789,1814.7,1814.3,10.10952224]
[1745703543216,14.82886789,1814.7,1814.6,0.16501025]
[1745703543427,15.13770514,1814.7,1814.3,11.74910698]
[1745703543646,15.13770514,1814.7,1814.6,0.16501025]
[1745703543833,15.13770514,1814.7,1814.3,10.10952224]
[1745703544036,15.13770514,1814.7,1814.6,0.16501025]
[1745703544233,9.62713752,1814.7,1814.3,10.10952224]
[1745703544543,9.62713752,1814.7,1814.4,1.01095222]
[1745703544722,0.30883725,1814.6,1814.4,0.16525508]
[1745703544922,0.30883725,1814.6,1814.3,10.10952224]
[1745703545134,0.30883725,1814.6,1814.4,0.16525508]
[1745703545311,0.30883725,1814.6,1814.3,10.10952224]
[1745703545512,0.30883725,1814.6,1814.4,0.16525508]
[1745703545728,0.30883725,1814.6,1814.5,5.51116009]
[1745703545937,0.30883725,1814.6,1814.5,5.67636792]
[1745703546409,0.30883725,1814.6,1814.5,0.16520783]
[1745703546609,5.56366077,1814.7,1814.5,0.16520783]
[1745703546805,5.56366077,1814.7,1814.6,5.51085638]
[1745703547011,5.56366077,1814.7,1814.6,6.7946444]
[1745703547232,10.12890027,1814.7,1814.6,0.16506974]
[1745703547443,15.63945297,1814.7,1814.6,0.16506974]
[1745703547644,3.0,1814.6,1814.3,4.598]
[1745703547838,0.30898958,1814.5,1814.3,10.10975346]
[1745703550145,0.30898958,1814.5,1814.3,10.10958532]
[1745703550322,0.30898958,1814.5,1814.3,11.74789185]
[1745703550518,0.30898958,1814.5,1814.4,0.16489492]
[1745703550848,0.30898958,1814.5,1814.3,11.74789185]
[1745703551072,0.30898958,1814.5,1814.4,0.16489492]
[1745703551365,0.30898958,1814.5,1814.3,11.74789185]
[1745703551533,0.30898958,1814.5,1814.4,0.16489492]
[1745703551730,0.30898958,1814.5,1814.3,11.74789185]
[1745703551937,0.30898958,1814.5,1814.4,6.86763744]
[1745703552956,0.30898958,1814.6,1814.4,6.86763744]
[1745703553556,0.30898958,1814.5,1814.4,6.86763744]
[1745703554150,0.30898958,1814.6,1814.4,6.86763744]
[1745703554723,0.30898958,1814.6,1814.5,6.96772383]
[1745703554944,0.30898958,1814.6,1814.5,7.13242119]
[1745703555256,5.56366077,1814.7,1814.5,7.13242119]
[1745703555479,5.56366077,1814.7,1814.5,6.44565745]
[1745703555664,5.56366077,1814.7,1814.5,6.50059708]
[1745703555828,5.56366077,1814.7,1814.6,5.51085638]
[1745703556154,5.56366077,1814.7,1814.6,5.67550649]
[1745703556327,5.8733865,1814.7,1814.6,5.67550649]
[1745703556527,5.8733865,1814.7,1814.6,6.87113658]
[1745703557256,0.30972573,1814.7,1814.6,6.87113658]
[1745703558159,0.30972573,1814.8,1814.6,6.87113658]
[1745703559062,5.56366077,1814.9,1814.6,6.87113658]
[1745703559275,5.56366077,1814.9,1814.6,5.67550649]
[1745703560863,0.3094438,1814.8,1814.6,5.67550649]
[1745703562066,6.99923113,1814.9,1814.6,5.67550649]
[1745703562648,5.56366077,1814.9,1814.7,5.51038924]
[1745703563031,8.56366077,1814.9,1814.8,0.16455563]
[1745703563226,3.0,1814.9,1814.8,0.16455563]
[1745703563463,3.30935671,1814.9,1814.8,0.16455563]
[1745703565634,8.81930216,1814.9,1814.5,6.2807847]
[1745703565834,0.30935671,1814.8,1814.6,0.16364803]
[1745703566560,1.74492707,1814.8,1814.6,0.16364803]
[1745703566777,0.30935671,1814.7,1814.6,0.16364803]
[1745703568278,0.30935671,1814.7,1814.6,5.67450441]
[1745703570650,5.56366077,1814.8,1814.6,5.67450441]
[1745703571383,5.56366077,1814.8,1814.6,5.67427202]
[1745703571548,5.56366077,1814.8,1814.6,6.32116922]
[1745703572684,5.56366077,1814.8,1814.6,10.90916922]
[1745703573498,5.56366077,1814.8,1814.6,0.16364803]
[1745703573499,3.7775,1814.7,1814.6,0.16364803]
[1745703573799,5.51119162,1814.5,1814.2,4.588]
[1745703574090,6.94676198,1814.5,1814.3,0.14984747]
[1745703574852,6.99923113,1814.5,1814.3,0.14984747]
[1745703575457,12.51041812,1814.5,1814.3,0.14984747]
[1745703576188,0.3093988,1814.4,1814.3,0.14984747]
[1745703577391,11.38452341,1814.4,1814.3,0.14984747]
[1745703577589,7.91786895,1814.4,1814.3,0.14984747]
[1745703577891,6.63585957,1814.4,1814.3,0.14984747]
[1745703580290,5.87305957,1814.4,1814.3,0.14984747]
[1745703581593,5.56366077,1814.4,1814.3,0.14984747]
[1745703585598,5.56366077,1814.4,1814.3,6.41881509]
[1745703586690,5.56366077,1814.5,1814.3,6.41881509]
[1745703586998,5.56366077,1814.5,1814.3,8.07068398]
[1745703587294,5.56366077,1814.5,1814.3,13.58222318]
[1745703587595,5.56366077,1814.5,1814.3,8.07045556]
[1745703589602,8.56366077,1814.5,1814.4,5.51146384]
[1745703589889,8.56366077,1814.5,1814.4,0.15297552]
[1745703590093,8.87283385,1814.5,1814.4,0.15297552]
[1745703590298,8.87283385,1814.5,1814.3,7.92060809]
[1745703590462,8.87283385,1814.5,1814.4,0.15297552]
[1745703590663,8.87283385,1814.5,1814.3,7.92060809]
[1745703590885,8.56366077,1814.5,1814.4,0.15297552]
[1745703591087,8.56366077,1814.5,1814.4,5.66443936]
[1745703591385,8.56366077,1814.5,1814.4,5.51146384]
[1745703591386,5.56366077,1814.5,1814.4,5.51146384]
[1745703591786,5.56366077,1814.5,1814.4,5.66443936]
[1745703592183,3.0,1814.7,1814.5,5.51104012]
[1745703592590,3.0,1814.7,1814.6,0.152881]
[1745703593303,3.30923971,1814.7,1814.6,0.152881]
[1745703595471,3.30923971,1814.7,1814.4,11.0224744]
[1745703595670,0.30923971,1814.6,1814.4,5.5112364]
[1745703595896,0.30923971,1814.6,1814.5,0.15292826]
[1745703596905,0.30923971,1814.6,1814.5,5.66408835]
[1745703599800,5.56366077,1814.9,1814.6,5.51061982]
[1745703600207,5.56366077,1814.9,1814.7,0.15208324]
[1745703600368,5.56366077,1814.9,1814.6,5.51080006]
[1745703600568,5.56366077,1814.9,1814.8,5.51024906]
[1745703600810,6.36696077,1815.2,1814.9,5.50969522]
[1745703601105,6.36696077,1815.2,1815.0,0.15074075]
[1745703601310,0.30937784,1815.1,1815.0,0.15074075]
[1745703601507,3.30937784,1815.1,1814.7,6.33479756]
[1745703601812,3.30937784,1815.1,1814.7,8.18714705]
[1745703602013,3.30937784,1815.1,1814.7,13.69747686]
[1745703602192,0.30937784,1815.0,1814.8,0.15083523]
[1745703602393,6.62250506,1815.0,1814.8,0.15083523]
[1745703602591,3.0,1814.9,1814.8,0.15083523]
[1745703602793,16.14853457,1814.9,1814.8,0.15083523]
[1745703602995,16.14853457,1814.9,1814.8,0.14923471]
[1745703603396,16.14853457,1814.9,1814.6,4.609]
[1745703603578,15.83915673,1814.9,1814.8,0.14923471]
[1745703603785,9.31354906,1814.8,1814.7,0.14928196]
[1745703603985,22.46332074,1814.8,1814.6,4.609]
[1745703604188,8.51063497,1814.7,1814.3,10.12061732]
[1745703604385,5.56366077,1814.6,1814.3,10.12061732]
[1745703606024,5.56366077,1814.6,1814.3,10.1205268]
[1745703606523,5.56366077,1814.6,1814.4,5.51144923]
[1745703606724,5.56366077,1814.6,1814.3,10.12056855]
[1745703606922,5.56366077,1814.6,1814.3,11.76626749]
[1745703607419,5.56366077,1814.6,1814.3,10.12056855]
[1745703607621,6.35166077,1814.6,1814.3,10.12056855]
[1745703609523,5.56366077,1814.5,1814.3,4.609]
[1745703610491,5.56366077,1814.5,1814.4,0.15097428]
[1745703610691,5.56366077,1814.5,1814.3,4.609]
[1745703610914,5.56366077,1814.5,1814.4,0.15097428]
[1745703611120,5.8730871,1814.5,1814.3,4.609]
[1745703611319,5.8730871,1814.5,1814.4,0.15127446]
[1745703611840,5.8730871,1814.5,1814.3,4.609]
[1745703612048,5.8730871,1814.5,1814.4,0.15127446]
[1745703612810,5.8730871,1814.5,1814.3,4.609]
[1745703613010,5.8730871,1814.5,1814.4,0.15127446]
[1745703613327,5.8730871,1814.5,1814.3,4.609]
[1745703613504,5.8730871,1814.5,1814.4,0.15127446]
[1745703613709,5.8730871,1814.5,1814.3,4.609]
[1745703613931,5.56366077,1814.5,1814.4,0.15127446]
[1745703614138,5.56366077,1814.5,1814.3,4.609]
[1745703614351,5.56366077,1814.5,1814.4,0.15127446]
[1745703614751,5.56366077,1814.5,1814.3,4.609]
[1745703614916,5.56366077,1814.5,1814.4,0.15127446]
[1745703615239,5.56366077,1814.5,1814.3,4.609]
[1745703615443,5.56366077,1814.5,1814.4,0.15127446]
[1745703615739,5.87312917,1814.5,1814.3,4.609]
[1745703615916,5.87312917,1814.5,1814.4,0.15127446]
[1745703616114,5.87312917,1814.5,1814.4,6.32876384]
[1745703616418,5.87312917,1814.5,1814.4,6.4800383]
[1745703616616,5.56366077,1814.5,1814.4,5.6627383]
[1745703617837,5.56366077,1814.5,1814.4,8.05837566]
[1745703619043,5.56366077,1814.8,1814.7,6.3278527]
[1745703619416,5.56366077,1814.8,1814.7,6.47868523]
[1745703630781,5.56366077,1815.2,1814.7,0.96813253]
[1745703630950,5.56366077,1815.2,1815.1,5.50933832]
[1745703631279,5.56366077,1815.2,1815.1,5.65803099]
[1745703638898,5.56366077,1815.2,1815.1,0.14869267]
[1745703639101,6.36526077,1815.2,1815.1,0.14869267]
[1745703642208,7.55266317,1815.2,1815.1,0.14869267]
[1745703642707,16.06169798,1815.2,1815.1,0.14869267]
[1745703642897,15.26009798,1815.2,1815.1,0.14869267]
[1745703643103,5.5099192,1815.0,1814.7,4.609]
[1745703643313,6.32336077,1814.9,1814.8,0.14703402]
[1745703643511,12.24449131,1814.9,1814.8,0.14703402]
[1745703644073,12.55320122,1814.9,1814.8,0.14703402]
[1745703644588,6.63207068,1814.9,1814.8,0.14703402]
[1745703645310,15.14201613,1814.9,1814.8,0.14703402]
[1745703645489,8.51036598,1814.8,1814.4,10.12043171]
[1745703645678,0.30870991,1814.7,1814.5,0.14837609]
[1745703648276,5.56366077,1814.6,1814.5,0.14837609]
[1745703666546,14.07451715,1814.6,1814.5,0.14837609]
[1745703666715,15.26191955,1814.6,1814.5,0.14837609]
[1745703667439,15.57093714,1814.6,1814.5,0.14837609]
[1745703669438,16.08628417,1814.6,1814.5,0.14837609]
[1745703670042,3.0,1814.5,1814.2,10.11392799]
[1745703670518,3.0,1814.5,1814.3,0.15217219]
[1745703671451,0.51575289,1814.4,1814.3,0.15217219]
[1745703672152,0.51575289,1814.4,1814.3,5.66393981]
[1745703672354,0.51575289,1814.4,1814.3,8.01102659]
[1745703677754,0.51575289,1814.4,1814.3,6.43323981]
[1745703679258,0.51575289,1814.4,1814.3,5.66393981]
[1745703687239,0.51575289,1814.4,1814.3,0.15217219]
[1745703688978,0.51575289,1814.4,1814.3,5.66393981]
[1745703689154,0.51661998,1814.4,1814.3,5.66393981]
[1745703690391,0.51661998,1814.4,1814.3,7.32282896]
[1745703696483,0.51661998,1814.4,1814.3,5.66393981]
[1745703698986,0.82662489,1814.4,1814.3,5.66393981]
[1745703699653,0.51661998,1814.4,1814.3,5.66393981]
[1745703703114,0.51661998,1814.4,1814.3,0.15217219]
[1745703703415,0.82668053,1814.4,1814.3,0.15217219]
[1745703703598,0.82668053,1814.4,1814.3,5.66393981]
[1745703704010,0.51661998,1814.4,1814.3,5.66393981]
[1745703705735,0.82668227,1814.4,1814.3,5.66393981]
[1745703706711,0.51661998,1814.4,1814.3,5.66393981]
[1745703708404,0.82668137,1814.4,1814.3,5.66393981]
[1745703709109,0.51661998,1814.4,1814.3,5.66393981]
[1745703712325,0.82668067,1814.4,1814.3,5.66393981]
[1745703715230,0.51661998,1814.4,1814.3,5.66393981]
[1745703723151,0.51661998,1814.4,1814.3,0.15217219]
[1745703723946,0.8266905,1814.4,1814.3,0.15217219]
[1745703727754,0.8266905,1814.4,1814.3,5.66393981]
[1745703727912,0.8266905,1814.4,1814.3,7.24171748]
[1745703728214,0.51661998,1814.4,1814.3,7.24171748]
[1745703728536,0.51661998,1814.4,1814.3,8.03121748]
[1745703731208,5.56366077,1814.6,1814.3,8.03121748]
[1745703731413,5.56366077,1814.6,1814.4,5.51132624]
[1745703731719,8.56366077,1814.6,1814.5,0.15232782]
[1745703731926,8.87360683,1814.6,1814.5,0.15232782]
[1745703732247,8.87360683,1814.6,1814.5,5.66348791]
[1745703732553,9.3901449,1814.6,1814.5,5.66348791]
[1745703732921,9.3901449,1814.6,1814.5,0.15232782]
[1745703734259,9.3901449,1814.6,1814.5,5.66348791]
[1745703735945,6.3901449,1814.6,1814.5,7.56058135]
[1745703736449,0.82648413,1814.6,1814.5,7.56058135]
[1745703736857,0.51653807,1814.6,1814.5,7.56058135]
[1745703737357,0.51653807,1814.8,1814.7,5.5105527]
[1745703737655,0.82633226,1814.8,1814.7,5.5105527]
[1745703737860,0.82633226,1814.8,1814.7,5.66228568]
[1745703738357,0.51653807,1814.8,1814.7,5.66228568]
[1745703742767,3.30937851,1814.9,1814.7,5.66228568]
[1745703743593,3.30937851,1814.9,1814.7,0.15173298]
[1745703744790,0.30937851,1814.9,1814.7,5.66227767]
[1745703745382,0.30937851,1814.9,1814.7,0.15173298]
[1745703745771,8.26231026,1814.8,1814.7,0.15173298]
[1745703745967,8.57168877,1814.8,1814.7,0.15173298]
[1745703746598,3.8007,1814.7,1814.6,4.581]
[1745703746895,4.62560668,1814.7,1814.6,4.581]
[1745703747114,10.13615938,1814.7,1814.3,4.58]
[1745703747268,10.13632429,1814.7,1814.3,4.58]
[1745703747603,0.51552817,1814.6,1814.3,10.09174215]
[1745703748005,6.38856745,1814.6,1814.3,10.09174215]
[1745703748401,5.87303928,1814.6,1814.3,10.09174215]
[1745703748607,0.8007,1814.5,1814.3,4.58]
[1745703750407,0.8007,1814.5,1814.3,10.09174701]
[1745703751703,0.8007,1814.5,1814.3,4.58]
[1745703752196,6.31202988,1814.5,1814.1,6.32225427]
[1745703752399,11.87569065,1814.5,1814.2,4.58]
[1745703754705,18.71825978,1814.5,1814.2,4.58]
[1745703754910,13.20684302,1814.5,1814.2,4.58]
[1745703755780,0.51564188,1814.4,1814.2,4.58]
[1745703756877,11.87569065,1814.5,1814.2,4.58]
[1745703759208,0.51552341,1814.4,1814.2,4.58]
[1745703759789,9.02710783,1814.4,1814.2,4.58]
[1745703760317,8.51158442,1814.4,1814.2,4.58]
[1745703760481,8.51158442,1814.4,1814.3,0.14722129]
[1745703762313,9.02696324,1814.4,1814.3,0.14722129]
[1745703768979,9.33610211,1814.4,1814.3,0.14722129]
[1745703771210,9.33610211,1814.4,1814.0,5.51243367]
[1745703771410,9.33610211,1814.4,1814.1,0.14881677]
[1745703772017,9.02696324,1814.4,1814.1,0.14881677]
[1745703772316,8.51158442,1814.4,1814.1,0.14881677]
[1745703773421,0.51552837,1814.3,1814.1,0.14881677]
[1745703773621,3.0,1814.2,1814.1,0.14881677]
[1745703774619,3.51552837,1814.2,1814.1,0.14881677]
[1745703775727,3.8251336,1814.2,1814.1,0.14881677]
[1745703777226,9.38879437,1814.2,1814.1,0.14881677]
[1745703781927,0.8251336,1814.2,1814.1,0.14881677]
[1745703782119,0.8251336,1814.2,1814.1,1.93385511]
[1745703782433,0.8251336,1814.2,1814.1,7.44623039]
[1745703782895,0.51552837,1814.2,1814.1,7.44623039]
[1745703783297,0.30960523,1814.3,1814.1,7.44623039]
[1745703784134,3.0,1814.4,1814.1,7.44623039]
[1745703784596,0.51626584,1814.3,1814.1,7.44623039]
[1745703784797,0.51626584,1814.3,1814.2,0.74462304]
[1745703785035,0.51626584,1814.3,1814.2,0.89614461]
[1745703785735,0.82605956,1814.3,1814.2,0.89614461]
[1745703786641,0.51626584,1814.3,1814.2,0.89614461]
[1745703788640,0.8260789,1814.3,1814.2,0.89614461]
[1745703791207,0.51626584,1814.3,1814.2,0.89614461]
[1745703793249,0.8260949,1814.3,1814.2,0.89614461]
[1745703797356,0.8260949,1814.3,1814.2,0.15152157]
[1745703797853,0.8260949,1814.3,1814.1,7.29716834]
[1745703798030,0.8260949,1814.3,1814.2,0.15147148]
[1745703798230,0.51626584,1814.3,1814.1,7.29716834]
[1745703798430,0.51626584,1814.3,1814.2,0.15147148]
[1745703798623,3.0,1814.4,1814.1,7.29716834]
[1745703798822,3.0,1814.4,1814.2,0.15147148]
[1745703799459,3.0,1814.4,1814.3,0.15142421]
[1745703799757,3.7741,1814.4,1814.1,5.51213]
[1745703800056,3.7741,1814.4,1814.2,0.15147148]
[1745703800219,3.7741,1814.4,1814.1,5.51213]
[1745703800657,3.7741,1814.4,1814.2,0.15147148]
[1745703800830,3.7741,1814.4,1814.1,5.51213]
[1745703801030,3.7741,1814.4,1814.2,0.15147148]
[1745703801231,3.7741,1814.4,1814.1,5.51213]
[1745703801571,3.0,1814.4,1814.3,5.51176762]
[1745703801765,5.56366077,1814.7,1814.6,5.51085638]
[1745703801918,5.56366077,1814.9,1814.6,5.51085638]
[1745703802119,3.0,1814.8,1814.7,5.5105527]
[1745703802359,3.0,1814.8,1814.6,5.65970057]
[1745703802564,3.0,1814.8,1814.7,0.14898457]
[1745703802925,0.51577653,1814.8,1814.7,5.65953497]
[1745703804273,5.56366077,1814.9,1814.7,5.65953497]
[1745703804574,5.56366077,1814.9,1814.7,6.77655173]
[1745703806776,5.56366077,1814.9,1814.7,12.28685796]
[1745703807264,5.56366077,1814.9,1814.7,6.77630756]
[1745703807974,5.56366077,1814.9,1814.7,12.28662733]
[1745703808970,5.56366077,1814.9,1814.7,13.72246036]
[1745703810371,5.56366077,1814.9,1814.8,1.37224604]
[1745703810674,5.56366077,1814.9,1814.8,1.51888186]
[1745703811256,5.56366077,1814.9,1814.8,0.14663582]
[1745703812970,5.56366077,1814.9,1814.8,6.43448488]
[1745703818278,5.56366077,1815.0,1814.9,5.50994545]
[1745703818576,5.56366077,1815.0,1814.9,5.65448278]
[1745703824152,3.0,1815.1,1815.0,5.50964187]
[1745703824352,3.0,1815.1,1815.0,5.65353179]
[1745703824669,3.0,1815.1,1815.0,6.76987951]
[1745703824873,5.56366077,1815.2,1815.0,6.76987951]
[1745703827687,5.56366077,1815.2,1815.0,1.26023764]
[1745703827957,5.56366077,1815.2,1815.0,0.14388992]
[1745703828270,5.56366077,1815.2,1815.0,5.65348696]
[1745703829189,5.56366077,1815.2,1815.0,5.65329085]
[1745703830061,5.56366077,1815.2,1815.1,5.50933832]
[1745703830257,5.56366077,1815.2,1815.1,5.65268092]
[1745703830459,5.56366077,1815.2,1815.1,6.8466491]
[1745703830703,5.56366077,1815.2,1815.1,0.1433426]
[1745703830995,5.56366077,1815.2,1814.8,10.8656518]
[1745703831161,5.56366077,1815.2,1815.1,0.14204229]
[1745703831361,5.56366077,1815.2,1814.9,5.50992468]
[1745703831561,5.56366077,1815.2,1815.0,0.14208953]
[1745703832098,0.7802,1815.1,1815.0,0.14208953]
[1745703832770,3.7802,1815.1,1815.0,0.03786128]
[1745703832972,9.28953832,1815.1,1815.0,0.13340384]
[1745703833181,9.28953832,1815.1,1814.7,5.510401]
[1745703833477,9.28953832,1815.1,1815.0,0.13340384]
[1745703833684,11.14209494,1815.1,1815.0,0.13340384]
[1745703834079,3.0,1814.9,1814.8,4.577]
[1745703835895,8.56366077,1814.9,1814.8,4.577]
[1745703836686,9.38126077,1814.9,1814.8,4.577]
[1745703840512,9.38126077,1814.9,1814.8,4.71209863]
[1745703840807,6.38126077,1814.9,1814.8,4.71209863]
[1745703841106,5.56366077,1814.9,1814.8,10.22234769]
[1745703841309,5.56366077,1814.9,1814.8,11.24458246]
[1745703841808,5.56366077,1815.2,1815.0,5.50950603]
[1745703842106,5.56366077,1815.4,1815.2,5.50901703]
[1745703842312,5.56366077,1815.4,1815.3,0.13456238]
[1745703842676,5.56366077,1815.4,1815.1,5.50915414]
[1745703842909,5.56366077,1815.4,1815.3,0.13456238]
[1745703843113,5.56366077,1815.4,1815.3,6.41509371]
[1745703843434,5.56366077,1815.6,1815.5,5.50812448]
[1745703843713,1.36583923,1815.8,1815.7,5.50751776]
[1745703843888,1.36583923,1815.8,1815.7,5.64104122]
[1745703847211,1.36583923,1815.8,1815.7,6.46314122]
[1745703858732,1.36583923,1815.8,1815.7,5.64104122]
[1745703858932,1.36583923,1815.8,1815.7,0.13352346]
[1745703859943,2.18103923,1815.8,1815.7,0.13352346]
[1745703860752,2.94984755,1815.8,1815.7,0.13352346]
[1745703861648,17.02072277,1815.8,1815.7,0.13352346]
[1745703875318,9.9295,1815.8,1815.7,0.13352346]
[1745703883596,6.9295,1815.8,1815.7,0.13352346]
[1745703885834,6.9295,1815.8,1815.5,16.40184254]
[1745703886056,6.9295,1815.8,1815.7,0.12714171]
[1745703886225,6.9295,1815.8,1815.6,0.12718891]
[1745703886425,6.9295,1815.8,1815.6,1.22929889]
[1745703886736,6.9295,1815.8,1815.6,6.73704412]
[1745703888640,1.36583923,1815.8,1815.6,6.73704412]
[1745703889538,1.36583923,1815.8,1815.7,6.33891776]
[1745703889737,1.36583923,1815.8,1815.7,6.46605947]
[1745703889949,1.36583923,1815.8,1815.7,7.77363558]
[1745703890452,1.36583923,1815.8,1815.7,2.26611782]
[1745703891847,1.36583923,1815.8,1815.7,7.77363558]
[1745703904459,1.36583923,1815.8,1815.7,7.74743558]
[1745703921003,1.36583923,1815.8,1815.7,12.32043558]
[1745703931591,1.36583923,1815.8,1815.7,12.45972075]